bitfinex/quotes_BTCUSD_20250910
["timestamp","ask_amount","ask_price","bid_price","bid_amount"]
[1757525910484,0.20559835,113560.0,113550.0,0.15418]
[1757525910681,0.20559835,113560.0,113550.0,0.0011]
[1757525910897,0.40101944,113560.0,113550.0,0.15414]
[1757525911585,0.40101944,113560.0,113550.0,0.0011]
[1757525911799,0.40101944,113560.0,113550.0,0.15414]
[1757525912857,0.40101944,113560.0,113550.0,0.18717357]
[1757525913081,0.40101944,113560.0,113550.0,0.36330743]
[1757525913296,0.17821835,113560.0,113550.0,0.36534743]
[1757525913516,0.18359625,113560.0,113550.0,0.36330743]
[1757525913782,0.40101944,113560.0,113550.0,0.0011]
[1757525913994,0.40101944,113560.0,113550.0,0.1541]
[1757525915878,0.40101944,113560.0,113550.0,0.0011]
[1757525916090,0.59644053,113560.0,113550.0,0.0011]
[1757525916503,0.93644053,113560.0,113550.0,0.0011]
[1757525916940,0.93644053,113560.0,113550.0,0.0001]
[1757525917158,0.93644053,113560.0,113550.0,0.0011]
[1757525917605,0.93744053,113560.0,113550.0,0.0001]
[1757525921539,1.09036053,113560.0,113550.0,0.0001]
[1757525923234,1.17788405,113560.0,113550.0,0.0001]
[1757525924030,1.02496405,113560.0,113550.0,0.0001]
[1757525924235,1.17788405,113560.0,113550.0,0.0001]
[1757525925735,1.02496405,113560.0,113550.0,0.0001]
[1757525925956,1.17788405,113560.0,113550.0,0.0001]
[1757525927655,0.69947835,113560.0,113550.0,0.0001]
[1757525927875,0.89485944,113560.0,113550.0,0.0001]
[1757525928097,0.89485944,113560.0,113550.0,0.00879163]
[1757525928502,0.89485944,113560.0,113550.0,0.0185987]
[1757525929149,0.89485944,113560.0,113550.0,0.0001]
[1757525930770,0.91130037,113560.0,113550.0,0.0001]
[1757525931906,0.91130037,113560.0,113550.0,0.00872015]
[1757525932133,0.91130037,113560.0,113550.0,0.0001]
[1757525932996,1.10672146,113560.0,113550.0,0.0001]
[1757525935828,1.19424498,113560.0,113550.0,0.0001]
[1757525936283,1.41479265,113560.0,113550.0,0.0001]
[1757525936505,1.42095922,113560.0,113550.0,0.0001]
[1757525936810,1.4473937,113560.0,113550.0,0.0001]
[1757525937266,1.4556149,113560.0,113550.0,0.0001]
[1757525937467,1.48522866,113560.0,113550.0,0.0001]
[1757525938148,1.55282866,113560.0,113550.0,0.0001]
[1757525938379,1.55182866,113560.0,113550.0,0.0001]
[1757525938812,1.55382866,113560.0,113550.0,0.0001]
[1757525939008,1.40098866,113560.0,113550.0,0.0001]
[1757525939239,1.5240949,113560.0,113550.0,0.0001]
[1757525939450,1.5250949,113560.0,113550.0,0.0001]
[1757525939889,0.78611163,113560.0,113550.0,0.0001]
[1757525940109,1.3296725,113560.0,113550.0,0.0001]
[1757525940327,0.93883032,113560.0,113550.0,0.0001]
[1757525940589,1.10090494,113560.0,113550.0,0.0001]
[1757525940810,0.94818494,113560.0,113550.0,0.0001]
[1757525941036,1.29632603,113560.0,113550.0,0.0001]
[1757525942508,1.29632527,113560.0,113550.0,0.0001]
[1757525943377,1.29628527,113560.0,113550.0,0.0001]
[1757525944507,1.29629527,113560.0,113550.0,0.0001]
[1757525950535,0.75277309,113560.0,113550.0,0.0001]
[1757525950767,1.26361498,113560.0,113550.0,0.0001]
[1757525951432,0.98067037,113560.0,113550.0,0.0001]
[1757525951654,0.56504928,113560.0,113550.0,0.0001]
[1757525951866,0.91307037,113560.0,113550.0,0.0001]
[1757525952045,0.89662944,113560.0,113550.0,0.0001]
[1757525952672,0.91308023,113560.0,113550.0,0.0001]
[1757525953701,0.91308027,113560.0,113550.0,0.0001]
[1757525954335,1.09205053,113560.0,113550.0,0.0001]
[1757525954754,0.89662944,113560.0,113550.0,0.0001]
[1757525955376,0.89658944,113560.0,113550.0,0.0001]
[1757525956814,1.09201053,113560.0,113550.0,0.0001]
[1757525957026,1.10846171,113560.0,113550.0,0.0001]
[1757525957236,1.09201053,113560.0,113550.0,0.0001]
[1757525958203,1.10846206,113560.0,113550.0,0.0001]
[1757525958820,1.09201053,113560.0,113550.0,0.0001]
[1757525959029,1.10846247,113560.0,113550.0,0.0001]
[1757525959242,1.19598599,113560.0,113550.0,0.0001]
[1757525963365,1.20215736,113560.0,113550.0,0.0001]
[1757525963772,1.2285914,113560.0,113550.0,0.0001]
[1757525963990,1.22242003,113560.0,113550.0,0.0001]
[1757525964398,1.09225367,113560.0,113550.0,0.0001]
[1757525964600,1.09842556,113560.0,113550.0,0.0001]
[1757525965020,0.96796765,113560.0,113550.0,0.0001]
[1757525965239,1.09830556,113560.0,113550.0,0.0001]
[1757525965441,1.09884556,113560.0,113550.0,0.0001]
[1757525966270,1.09880556,113560.0,113550.0,0.0001]
[1757525968031,0.94640556,113560.0,113550.0,0.0001]
[1757525968443,1.09263367,113560.0,113550.0,0.0001]
[1757525968651,0.94023367,113560.0,113550.0,0.0001]
[1757525968868,1.06789367,113560.0,113550.0,0.0001]
[1757525969067,1.09263367,113560.0,113550.0,0.0001]
[1757525969894,0.80989576,113560.0,113550.0,0.0001]
[1757525970126,0.70150835,113560.0,113550.0,0.0001]
[1757525970335,0.83184626,113560.0,113550.0,0.0001]
[1757525970760,0.67948626,113560.0,113550.0,0.0001]
[1757525970996,0.83184626,113560.0,113550.0,0.0001]
[1757525972716,1.06616788,113560.0,113550.0,0.0001]
[1757525974950,1.22163237,113560.0,113550.0,0.0001]
[1757525975164,1.25124613,113560.0,113550.0,0.0001]
[1757525975350,1.29208235,113560.0,113550.0,0.0001]
[1757525976930,1.26246859,113560.0,113550.0,0.0001]
[1757525977143,1.28142633,113560.0,113550.0,0.0001]
[1757525977361,0.8904126,113560.0,113550.0,0.0001]
[1757525977594,1.28142633,113560.0,113550.0,0.0001]
[1757525978475,1.15108842,113560.0,113550.0,0.0001]
[1757525978687,1.28138633,113560.0,113550.0,0.0001]
[1757525978898,1.15100842,113560.0,113550.0,0.0001]
[1757525981545,1.13205068,113560.0,113550.0,0.0001]
[1757525982358,1.13203972,113560.0,113550.0,0.0001]
[1757525985173,1.19967972,113560.0,113550.0,0.0001]
[1757525985373,1.33001763,113560.0,113550.0,0.0001]
[1757525991048,1.04739972,113560.0,113550.0,0.0001]
[1757525991260,1.19955972,113560.0,113550.0,0.0001]
[1757525993791,1.32989763,113560.0,113550.0,0.0001]
[1757525993995,1.34884577,113560.0,113550.0,0.0001]
[1757525994409,1.34883427,113560.0,113550.0,0.0001]
[1757525995032,1.37844803,113560.0,113550.0,0.0001]
[1757525996919,1.47111803,113560.0,113550.0,0.0001]
[1757525997134,1.37844803,113560.0,113550.0,0.0001]
[1757525997565,1.37844751,113560.0,113550.0,0.0001]
[1757525998190,1.3784486,113560.0,113550.0,0.0001]
[1757525999018,0.5708742,113550.0,113540.0,4.686e-05]
[1757525999230,1.10199588,113550.0,113540.0,4.686e-05]
[1757525999438,1.12294884,113550.0,113540.0,4.686e-05]
[1757525999650,1.17518807,113550.0,113540.0,4.686e-05]
[1757526000268,1.17528807,113550.0,113540.0,4.686e-05]
[1757526001330,1.17628807,113550.0,113540.0,4.686e-05]
[1757526004236,1.17728807,113550.0,113540.0,4.686e-05]
[1757526004442,1.30762598,113550.0,113540.0,4.686e-05]
[1757526004858,1.17728807,113550.0,113540.0,4.686e-05]
[1757526005058,1.30762598,113550.0,113540.0,4.686e-05]
[1757526005266,1.17728807,113550.0,113540.0,4.686e-05]
[1757526005474,1.17724807,113550.0,113540.0,4.686e-05]
[1757526006102,1.17720807,113550.0,113540.0,4.686e-05]
[1757526006518,1.14759431,113550.0,113540.0,4.686e-05]
[1757526006723,1.17535631,113550.0,113540.0,4.686e-05]
[1757526006936,1.26802631,113550.0,113540.0,4.686e-05]
[1757526007144,1.17535631,113550.0,113540.0,4.686e-05]
[1757526007574,1.17435631,113550.0,113540.0,4.686e-05]
[1757526007983,1.30469422,113550.0,113540.0,4.686e-05]
[1757526008195,1.30669422,113550.0,113540.0,4.686e-05]
[1757526008398,1.15569422,113550.0,113540.0,4.686e-05]
[1757526008824,1.17735631,113550.0,113540.0,4.686e-05]
[1757526009031,1.14859431,113550.0,113540.0,4.686e-05]
[1757526010302,0.99659431,113550.0,113540.0,4.686e-05]
[1757526010513,1.14859431,113550.0,113540.0,4.686e-05]
[1757526011765,1.17118733,113550.0,113540.0,4.686e-05]
[1757526011924,1.17735688,113550.0,113540.0,4.686e-05]
[1757526013201,1.16090917,113550.0,113540.0,4.686e-05]
[1757526013400,1.14195621,113550.0,113540.0,4.686e-05]
[1757526013812,1.13373056,113550.0,113540.0,4.686e-05]
[1757526014037,1.10492856,113550.0,113540.0,4.686e-05]
[1757526014239,1.13369056,113550.0,113540.0,4.686e-05]
[1757526015628,1.26402847,113550.0,113540.0,4.686e-05]
[1757526016726,1.31402847,113550.0,113540.0,4.686e-05]
[1757526017391,1.16206847,113550.0,113540.0,4.686e-05]
[1757526017618,1.31398847,113550.0,113540.0,4.686e-05]
[1757526017860,1.28522647,113550.0,113540.0,4.686e-05]
[1757526018163,1.28518647,113550.0,113540.0,4.686e-05]
[1757526018367,1.23518647,113550.0,113540.0,4.686e-05]
[1757526018635,1.28518647,113550.0,113540.0,4.686e-05]
[1757526019571,1.28518422,113550.0,113540.0,4.686e-05]
[1757526020048,1.13330422,113550.0,113540.0,4.686e-05]
[1757526020254,1.28518422,113550.0,113540.0,4.686e-05]
[1757526021671,1.00296631,113550.0,113540.0,4.686e-05]
[1757526021877,1.10480631,113550.0,113540.0,4.686e-05]
[1757526022082,1.15480631,113550.0,113540.0,4.686e-05]
[1757526022507,1.23514422,113550.0,113540.0,4.686e-05]
[1757526022710,1.28514422,113550.0,113540.0,4.686e-05]
[1757526024818,1.23514422,113550.0,113540.0,4.686e-05]
[1757526024961,1.28514422,113550.0,113540.0,4.686e-05]
[1757526025187,1.28974204,113550.0,113540.0,4.686e-05]
[1757526026494,1.48554622,113550.0,113540.0,4.686e-05]
[1757526027165,1.48550622,113550.0,113540.0,4.686e-05]
[1757526028745,1.13810025,113550.0,113540.0,4.686e-05]
[1757526028961,0.5273677,113550.0,113540.0,4.686e-05]
[1757526029163,0.6730004,113550.0,113540.0,4.686e-05]
[1757526029419,1.00840258,113550.0,113540.0,4.686e-05]
[1757526030699,1.20400855,113550.0,113540.0,4.686e-05]
[1757526031389,1.00840258,113550.0,113540.0,4.686e-05]
[1757526032960,1.0248504,113550.0,113540.0,4.686e-05]
[1757526033164,1.0248502,113550.0,113540.0,4.686e-05]
[1757526034239,1.00840258,113550.0,113540.0,4.686e-05]
[1757526037502,0.83393258,113550.0,113540.0,0.00213686]
[1757526037626,0.98561258,113550.0,113540.0,0.00213686]
[1757526037828,0.98561258,113550.0,113540.0,4.686e-05]
[1757526039171,1.01036258,113550.0,113540.0,4.686e-05]
[1757526040655,0.83080258,113550.0,113540.0,0.00213686]
[1757526040855,0.54567309,113550.0,113540.0,0.00513686]
[1757526041118,0.33087386,113550.0,113540.0,0.18128623]
[1757526041818,0.52647983,113550.0,113540.0,0.18128623]
[1757526043657,0.37483983,113550.0,113540.0,0.18128623]
[1757526043882,0.33083386,113550.0,113540.0,0.18128623]
[1757526044083,0.52643983,113550.0,113540.0,0.18128623]
[1757526047509,0.53147983,113550.0,113540.0,0.00213686]
[1757526047708,0.53147983,113550.0,113540.0,4.686e-05]
[1757526048884,0.53147983,113550.0,113540.0,0.00213686]
[1757526049129,0.52838983,113550.0,113540.0,0.00213686]
[1757526051499,0.33278386,113550.0,113540.0,0.17828623]
[1757526051726,0.52635983,113550.0,113540.0,0.18128623]
[1757526052486,0.52635983,113550.0,113540.0,0.00513686]
[1757526052695,0.52830983,113550.0,113540.0,0.00213686]
[1757526053117,0.53139983,113550.0,113540.0,0.00213686]
[1757526053316,0.52830983,113550.0,113540.0,0.00213686]
[1757526053515,0.52635983,113550.0,113540.0,0.18128623]
[1757526056380,0.52635983,113550.0,113540.0,0.00513686]
[1757526056614,0.52635983,113550.0,113540.0,0.18128623]
[1757526056832,0.52832983,113550.0,113540.0,0.00213686]
[1757526057049,0.52832983,113550.0,113540.0,4.686e-05]
[1757526057050,1.17909932,113550.0,113540.0,4.686e-05]
[1757526057488,1.20553417,113550.0,113540.0,4.686e-05]
[1757526059255,1.05401417,113550.0,113540.0,4.686e-05]
[1757526059470,0.57527871,113550.0,113540.0,0.00220686]
[1757526059692,0.74127468,113550.0,113540.0,0.00535686]
[1757526060210,0.86623983,113550.0,113540.0,0.00535686]
[1757526060415,0.86820983,113550.0,113540.0,0.00220686]
[1757526060622,0.86820983,113550.0,113540.0,0.00535686]
[1757526062246,0.86820983,113550.0,113540.0,0.00220686]
[1757526062437,0.89584983,113550.0,113540.0,4.686e-05]
[1757526063085,0.92228205,113550.0,113540.0,4.686e-05]
[1757526064648,0.92224205,113550.0,113540.0,4.686e-05]
[1757526070128,0.54566608,113550.0,113540.0,0.00220686]
[1757526070283,0.54566608,113550.0,113540.0,0.00535686]
[1757526070498,0.86615983,113550.0,113540.0,0.18150623]
[1757526070767,0.51923386,113550.0,113540.0,0.18150623]
[1757526070964,0.33051386,113550.0,113540.0,0.18150623]
[1757526071210,0.52611983,113550.0,113540.0,0.18150623]
[1757526072413,0.0031,113550.0,113540.0,0.36855332]
[1757526072627,0.0031,113550.0,113540.0,0.47890684]
[1757526072840,0.0031,113550.0,113540.0,0.54220657]
[1757526073461,0.0021,113550.0,113540.0,0.54220657]
[1757526074115,0.0001,113550.0,113540.0,0.54220657]
[1757526074626,0.0001,113550.0,113540.0,0.54320657]
[1757526076590,0.0001,113550.0,113540.0,0.74320657]
[1757526076964,0.0001,113550.0,113540.0,0.74312657]
[1757526077338,0.0001,113550.0,113540.0,0.67982684]
[1757526077827,0.0001,113550.0,113540.0,0.74312657]
[1757526078195,0.0001,113550.0,113540.0,1.08312657]
[1757526078398,0.0001,113550.0,113540.0,0.93192657]
[1757526078598,0.0001,113550.0,113540.0,1.01982684]
[1757526079062,0.0001,113550.0,113540.0,1.48312657]
[1757526080396,0.0001,113550.0,113540.0,1.48412657]
[1757526080586,0.0001,113550.0,113540.0,1.48312657]
[1757526080818,0.0001,113550.0,113540.0,1.48212657]
[1757526081023,0.0001,113550.0,113540.0,1.48412657]
[1757526082091,0.0001,113550.0,113540.0,1.66025315]
[1757526082506,0.0001,113550.0,113540.0,1.73667566]
[1757526082758,0.0001,113550.0,113540.0,1.73659566]
[1757526083705,0.0001,113550.0,113540.0,1.73669566]
[1757526083941,0.0001,113550.0,113540.0,1.68669566]
[1757526084151,0.0001,113550.0,113540.0,1.73669566]
[1757526084327,0.0001,113550.0,113540.0,1.58557566]
[1757526084554,0.0001,113550.0,113540.0,1.73669566]
[1757526084825,0.0001,113550.0,113540.0,1.53557566]
[1757526085028,0.0001,113550.0,113540.0,1.68669566]
[1757526085254,0.0001,113550.0,113540.0,1.73669566]
[1757526087135,0.0001,113550.0,113540.0,1.73665566]
[1757526087586,0.0001,113550.0,113540.0,1.66152908]
[1757526094032,0.0001,113550.0,113540.0,1.86152908]
[1757526094250,0.0001,113550.0,113540.0,1.88665566]
[1757526097004,0.0001,113550.0,113540.0,1.93665566]
[1757526097227,0.0001,113550.0,113540.0,1.87335593]
[1757526097815,0.0001,113550.0,113540.0,2.10545593]
[1757526098070,0.0001,113550.0,113540.0,1.87335593]
[1757526098265,1e-08,113550.0,113540.0,1.9494806]
[1757526098473,1e-08,113550.0,113540.0,1.9544806]
[1757526098670,0.0001,113560.0,113550.0,0.22613386]
[1757526098891,0.0002,113580.0,113570.0,0.57610284]
[1757526099089,0.0003,113580.0,113570.0,0.87987386]
[1757526099267,0.0003,113580.0,113570.0,1.27987386]
[1757526099466,0.0003,113580.0,113570.0,1.30584386]
[1757526099803,0.0003,113580.0,113570.0,1.30580386]
[1757526100034,0.0003,113580.0,113570.0,1.39343504]
[1757526100624,0.0023,113580.0,113570.0,1.39343504]
[1757526100878,0.0023,113580.0,113570.0,1.24251504]
[1757526101086,0.0023,113580.0,113570.0,1.39343504]
[1757526102489,0.0023,113580.0,113570.0,1.24251504]
[1757526102741,0.0023,113580.0,113570.0,1.39339504]
[1757526103315,0.0023,113580.0,113570.0,1.39439504]
[1757526103692,0.0003,113580.0,113570.0,1.39439504]
[1757526103924,0.0003,113580.0,113570.0,1.39539504]
[1757526108604,0.0003,113580.0,113570.0,1.24451504]
[1757526108905,0.0003,113580.0,113570.0,1.39531504]
[1757526112636,0.0003,113580.0,113570.0,1.71244504]
[1757526112839,0.0003,113580.0,113570.0,1.64931754]
[1757526113418,0.0002,113580.0,113570.0,1.64931754]
[1757526115005,0.0002,113580.0,113570.0,1.64927754]
[1757526115490,0.0003,113580.0,113570.0,1.64927754]
[1757526115719,0.0003,113580.0,113570.0,1.30927754]
[1757526117720,0.0003,113580.0,113570.0,1.30917754]
[1757526119075,0.17638733,113580.0,113570.0,0.67089402]
[1757526119289,0.17638733,113580.0,113570.0,0.82161402]
[1757526119708,0.17638733,113580.0,113570.0,0.42161402]
[1757526119904,0.17838733,113580.0,113570.0,0.42161402]
[1757526120106,0.17838733,113580.0,113570.0,0.41851402]
[1757526120310,0.18156733,113580.0,113570.0,0.09169118]
[1757526120469,0.18376523,113580.0,113570.0,0.41851402]
[1757526120691,0.18156733,113580.0,113570.0,0.41851402]
[1757526120891,0.17838733,113580.0,113570.0,0.41851402]
[1757526121094,0.18058523,113580.0,113570.0,0.41751402]
[1757526121304,0.18058523,113580.0,113570.0,0.23825118]
[1757526121505,0.31399938,113580.0,113570.0,0.15068]
[1757526121718,0.31280148,113580.0,113570.0,0.15068]
[1757526121925,0.17938733,113580.0,113570.0,0.002]
[1757526122120,0.20879523,113580.0,113570.0,0.15068]
[1757526122348,0.20659733,113580.0,113570.0,0.15068]
[1757526122547,0.20659733,113580.0,113570.0,0.18365577]
[1757526122989,0.33683148,113580.0,113570.0,0.15068]
[1757526123220,0.17610284,113570.0,113550.0,0.40626923]
[1757526123419,0.17610284,113570.0,113560.0,0.15068]
[1757526123420,0.18148074,113570.0,113560.0,0.15068]
[1757526123620,0.17928284,113570.0,113560.0,0.38493288]
[1757526123976,0.17820284,113570.0,113560.0,0.38693288]
[1757526124238,0.17820284,113570.0,113560.0,0.38990288]
[1757526125141,0.17820284,113570.0,113560.0,0.39090288]
[1757526125358,0.17820284,113570.0,113560.0,0.38990288]
[1757526126212,0.17820284,113570.0,113560.0,0.39090288]
[1757526126672,0.17820284,113570.0,113560.0,0.21181453]
[1757526127089,0.17820284,113570.0,113560.0,0.38793288]
[1757526127309,0.17820284,113570.0,113560.0,0.38990288]
[1757526127750,0.17920284,113570.0,113560.0,0.38990288]
[1757526130079,0.17920284,113570.0,113560.0,0.21378453]
[1757526130238,0.17920284,113570.0,113560.0,0.38990288]
[1757526131057,0.17920284,113570.0,113560.0,0.20881453]
[1757526131058,0.18458074,113570.0,113560.0,0.20881453]
[1757526131267,0.33664699,113570.0,113560.0,0.15068]
[1757526131477,0.20641284,113570.0,113560.0,0.15068]
[1757526131685,0.33664699,113570.0,113560.0,0.15068]
[1757526132096,0.17920284,113570.0,113560.0,0.32879835]
[1757526132307,0.18140074,113570.0,113560.0,0.33176835]
[1757526132491,0.18140074,113570.0,113560.0,0.40683396]
[1757526133573,0.17940074,113570.0,113560.0,0.40683396]
[1757526134597,0.18140074,113570.0,113560.0,0.22766561]
[1757526135020,0.18458074,113570.0,113560.0,0.22766561]
[1757526135225,0.18238284,113570.0,113560.0,0.22766561]
[1757526136598,0.17920284,113570.0,113560.0,0.22766561]
[1757526136792,0.18140074,113570.0,113560.0,0.22766561]
[1757526137909,0.18140074,113570.0,113560.0,0.22566561]
[1757526138134,0.18458074,113570.0,113560.0,0.22566561]
[1757526138336,0.18238284,113570.0,113560.0,0.22566561]
[1757526138969,0.18238284,113570.0,113560.0,0.22562561]
[1757526139124,0.20641284,113570.0,113560.0,0.22562561]
[1757526140015,0.20641284,113570.0,113560.0,0.07506561]
[1757526140219,0.17611835,113560.0,113550.0,0.08763118]
[1757526140490,0.6777604,113560.0,113550.0,0.0001]
[1757526140739,0.6755625,113560.0,113550.0,0.0001]
[1757526141292,0.8262225,113560.0,113550.0,0.0001]
[1757526141492,0.8262225,113560.0,113550.0,0.0011]
[1757526141691,0.8262225,113560.0,113550.0,0.0021]
[1757526142160,0.95645665,113560.0,113550.0,0.0021]
[1757526142335,0.8262225,113560.0,113550.0,0.0021]
[1757526142940,0.8262225,113560.0,113550.0,0.0001]
[1757526143142,0.8272225,113560.0,113550.0,0.0001]
[1757526143534,0.54642835,113560.0,113550.0,0.0001]
[1757526143735,0.3411,113560.0,113550.0,0.18120386]
[1757526143933,0.17721835,113560.0,113550.0,0.23777424]
[1757526144190,0.0011,113560.0,113550.0,0.23557257]
[1757526145353,0.17721835,113560.0,113550.0,0.23557257]
[1757526150411,0.0011,113560.0,113550.0,0.23557257]
[1757526153017,0.17721835,113560.0,113550.0,0.23557257]
[1757526154335,0.17721835,113560.0,113550.0,0.05943871]
[1757526154565,0.17721835,113560.0,113550.0,0.33168386]
[1757526155090,0.17928835,113560.0,113550.0,0.0021]
[1757526155297,0.18148625,113560.0,113550.0,0.15258]
[1757526155538,0.37998944,113560.0,113550.0,0.15058]
[1757526155718,0.18238835,113560.0,113550.0,0.15058]
[1757526155952,0.37779154,113560.0,113550.0,0.18713732]
[1757526156885,0.37779154,113560.0,113550.0,0.03665732]
[1757526157492,0.37779154,113560.0,113550.0,0.21490118]
[1757526157726,0.18238835,113560.0,113550.0,0.21490118]
[1757526157874,0.0011,113560.0,113550.0,0.21793118]
[1757526164762,0.0011,113560.0,113550.0,0.21293118]
[1757526166624,0.0011,113560.0,113550.0,0.3229647]
[1757526166835,0.0011,113560.0,113550.0,0.5860922]
[1757526168276,0.0011,113560.0,113550.0,0.88809128]
[1757526168497,0.0011,113560.0,113550.0,0.96700418]
[1757526168700,0.0011,113560.0,113550.0,0.97052692]
[1757526169250,0.001,113560.0,113550.0,1.18774936]
[1757526169445,0.0001,113570.0,113560.0,0.37611835]
[1757526169691,0.0001,113570.0,113560.0,0.70758043]
[1757526169873,0.0001,113570.0,113560.0,0.70969043]
[1757526170240,0.0001,113570.0,113560.0,0.83754043]
[1757526170425,0.0001,113570.0,113560.0,0.63754043]
[1757526170642,0.0011,113570.0,113560.0,0.83754043]
[1757526170845,0.0011,113570.0,113560.0,1.23754043]
[1757526171063,0.0011,113570.0,113560.0,0.83754043]
[1757526171677,0.0011,113570.0,113560.0,0.86005043]
[1757526176552,0.001,113570.0,113560.0,1.19678305]
[1757526176928,0.001,113570.0,113560.0,1.20030562]
[1757526177050,0.001,113570.0,113560.0,1.5654322]
[1757526177491,0.001,113570.0,113560.0,1.6443451]
[1757526178484,0.0003,113580.0,113570.0,0.17610284]
[1757526178705,0.0003,113580.0,113570.0,0.41651912]
[1757526178903,0.0003,113580.0,113570.0,0.44262784]
[1757526179493,0.0003,113580.0,113570.0,0.64362784]
[1757526179686,0.0003,113580.0,113570.0,1.07104433]
[1757526180321,0.0003,113580.0,113570.0,1.22132433]
[1757526180878,0.0003,113580.0,113570.0,1.24645091]
[1757526181841,0.0003,113580.0,113570.0,1.58645091]
[1757526182067,0.0003,113580.0,113570.0,1.52329061]
[1757526182776,0.0002,113580.0,113570.0,1.52329061]
[1757526182954,0.0002,113580.0,113570.0,1.37301061]
[1757526183158,0.0002,113580.0,113570.0,1.60216351]
[1757526184937,0.0002,113580.0,113570.0,1.45202351]
[1757526185108,0.0002,113580.0,113570.0,1.60226351]
[1757526185323,0.0002,113580.0,113570.0,1.52335061]
[1757526188211,0.0002,113580.0,113570.0,1.58637365]
[1757526188433,0.0002,113580.0,113570.0,1.58633779]
[1757526188815,0.0002,113580.0,113570.0,1.43613779]
[1757526189015,0.0002,113580.0,113570.0,1.58633779]
[1757526189590,0.0002,113580.0,113570.0,1.56121121]
[1757526191486,0.0002,113580.0,113570.0,1.56117121]
[1757526191685,0.0002,113580.0,113570.0,1.07101121]
[1757526191890,0.0002,113580.0,113570.0,1.22117121]
[1757526192384,0.0002,113580.0,113570.0,1.19475472]
[1757526193208,0.0002,113580.0,113570.0,1.04459472]
[1757526193428,0.0002,113580.0,113570.0,1.19475472]
[1757526193674,0.0002,113580.0,113570.0,1.10837754]
[1757526193850,0.0002,113580.0,113570.0,0.95568471]
[1757526194070,0.0003,113580.0,113570.0,1.15568471]
[1757526194273,0.0003,113580.0,113570.0,1.10837754]
[1757526194904,0.0003,113580.0,113570.0,1.15570063]
[1757526195405,0.0003,113580.0,113570.0,1.10837754]
[1757526195814,0.0003,113580.0,113570.0,1.1557187]
[1757526196222,0.0003,113580.0,113570.0,1.1556187]
[1757526196346,0.0003,113580.0,113570.0,1.10827754]
[1757526196551,0.0003,113580.0,113570.0,0.70827754]
[1757526196764,0.0003,113580.0,113570.0,0.55811754]
[1757526196965,0.00225,113580.0,113570.0,0.55265004]
[1757526197436,0.00225,113580.0,113570.0,0.50823754]
[1757526197644,0.0003,113580.0,113570.0,0.50823754]
[1757526198745,0.17638733,113580.0,113570.0,0.55562185]
[1757526198951,0.17385568,113580.0,113570.0,0.55562185]
[1757526199156,0.0001,113580.0,113570.0,0.55562185]
[1757526199360,0.00205,113580.0,113570.0,0.46514833]
[1757526199700,0.18114733,113580.0,113570.0,0.46514833]
[1757526199909,0.37655052,113580.0,113570.0,0.46313833]
[1757526200349,0.18114733,113580.0,113570.0,0.46414833]
[1757526200555,0.17813733,113580.0,113570.0,0.46414833]
[1757526200762,0.18033523,113580.0,113570.0,0.46514833]
[1757526201269,0.0042479,113580.0,113570.0,0.46709833]
[1757526201513,0.18033523,113580.0,113570.0,0.46709833]
[1757526201750,0.18033523,113580.0,113570.0,0.46609833]
[1757526201987,0.18434523,113580.0,113570.0,0.04738431]
[1757526202191,0.18214733,113580.0,113560.0,0.52885384]
[1757526202401,0.37755052,113580.0,113560.0,0.61932736]
[1757526202615,0.37755052,113580.0,113570.0,0.18106284]
[1757526202616,0.0011,113580.0,113570.0,0.18106284]
[1757526203066,0.17718733,113580.0,113570.0,0.18106284]
[1757526203268,0.0001,113580.0,113570.0,0.26080686]
[1757526205467,0.0001,113580.0,113570.0,0.30819117]
[1757526205697,0.0011,113580.0,113570.0,0.30819117]
[1757526206333,0.0011,113580.0,113570.0,0.26080686]
[1757526209738,0.17718733,113580.0,113570.0,0.26080686]
[1757526209914,0.0011,113580.0,113570.0,0.26080686]
[1757526211350,0.0011,113580.0,113570.0,0.30819117]
[1757526212341,0.0011,113580.0,113570.0,0.26080686]
[1757526212519,0.17718733,113580.0,113570.0,0.26080686]
[1757526212924,0.0011,113580.0,113570.0,0.26080686]
[1757526213327,0.0011,113580.0,113570.0,0.30819117]
[1757526215854,0.0011,113580.0,113570.0,0.39571469]
[1757526217888,0.0011,113580.0,113570.0,0.41924469]
[1757526218426,0.0011,113580.0,113570.0,0.39571469]
[1757526219606,0.00324,113580.0,113570.0,0.54659469]
[1757526220053,0.0011,113580.0,113570.0,0.54659469]
[1757526220288,0.0011,113580.0,113570.0,0.39571469]
[1757526220495,0.0011,113580.0,113570.0,0.54651469]
[1757526222078,0.0011,113580.0,113570.0,0.49913038]
[1757526222897,0.0011,113580.0,113570.0,0.49656338]
[1757526223106,0.0011,113580.0,113570.0,0.49851338]
[1757526223754,0.0011,113580.0,113570.0,0.34771338]
[1757526223963,0.0011,113580.0,113570.0,0.49847338]
[1757526224176,0.0011,113580.0,113570.0,0.49596038]
[1757526225146,0.0011,113580.0,113570.0,0.56203756]
[1757526225755,0.0011,113580.0,113570.0,0.41139756]
[1757526225958,0.0011,113580.0,113570.0,0.55894756]
[1757526226580,0.0011,113580.0,113570.0,0.40834756]
[1757526226933,0.18234733,113580.0,113570.0,0.49393038]
[1757526227328,0.18234733,113580.0,113570.0,0.55890756]
[1757526227558,0.00626,113580.0,113570.0,0.55890756]
[1757526227993,0.18234733,113580.0,113570.0,0.55890756]
[1757526229100,0.00626,113580.0,113570.0,0.55890756]
[1757526229611,0.17718733,113580.0,113570.0,0.55890756]
[1757526229829,0.17932733,113580.0,113570.0,0.55890756]
[1757526230054,0.00626,113580.0,113570.0,0.55890756]
[1757526230499,0.0011,113580.0,113570.0,0.55890756]
[1757526230719,0.0011,113580.0,113570.0,0.56195756]
[1757526231675,0.0011,113580.0,113570.0,0.58548756]
[1757526232727,0.0011,113580.0,113570.0,0.92246038]
[1757526232934,0.0011,113580.0,113570.0,1.00137328]
[1757526233422,0.001,113580.0,113570.0,1.00137328]
[1757526233618,0.001,113580.0,113570.0,1.34137328]
[1757526233816,0.00014356,113580.0,113570.0,1.37323491]
[1757526233995,0.00014356,113580.0,113570.0,1.37675704]
[1757526234204,0.00014356,113580.0,113570.0,1.26598251]
[1757526234363,0.0001,113590.0,113580.0,0.17608733]
[1757526234568,0.0001,113590.0,113580.0,0.45816874]
[1757526234825,0.0001,113590.0,113580.0,0.45798765]
[1757526235053,0.0001,113590.0,113580.0,0.52390155]
[1757526235496,0.0001,113590.0,113580.0,1.10063608]
[1757526235746,0.00056714,113590.0,113580.0,1.10073608]
[1757526235995,0.00156714,113590.0,113580.0,1.10073608]
[1757526236215,0.00156714,113590.0,113580.0,1.59073608]
[1757526236692,0.00146714,113590.0,113580.0,1.59073608]
[1757526237128,0.00146714,113590.0,113580.0,1.59065608]
[1757526237609,0.00046714,113590.0,113580.0,1.59065608]